bitfinex/quotes_ETHUSD_20250726
["timestamp","ask_amount","ask_price","bid_price","bid_amount"]
[1753556048315,0.1336,3748.2,3748.0,1.2899]
[1753556048600,0.1336,3748.2,3748.0,3.49078382]
[1753556048804,0.1336,3748.4,3748.1,2.66801064]
[1753556049003,2.524,3748.3,3748.1,2.66801064]
[1753556049206,0.1336,3748.4,3748.2,0.4672]
[1753556049407,2.524,3748.3,3748.2,0.4672]
[1753556051115,2.524,3748.3,3748.0,3.49078087]
[1753556051116,2.524,3748.3,3748.0,3.95798087]
[1753556051316,2.524,3748.3,3748.0,3.49078087]
[1753556051567,2.524,3748.3,3748.1,0.4672]
[1753556051723,2.524,3748.2,3748.1,0.4672]
[1753556054292,2.524,3748.2,3748.1,3.13521846]
[1753556055437,2.524,3748.2,3748.1,0.4672]
[1753556055739,2.524,3748.2,3748.0,3.49077637]
[1753556056035,2.524,3748.2,3748.0,3.94217637]
[1753556058262,2.969,3748.2,3748.0,1.2741]
[1753556058471,2.969,3748.2,3748.0,3.94218002]
[1753556059670,2.969,3748.2,3748.0,1.2741]
[1753556060677,2.969,3748.2,3748.0,3.94218213]
[1753556061283,2.969,3748.2,3748.0,1.2741]
[1753556061433,2.524,3748.2,3747.9,0.1336]
[1753556061634,0.445,3748.1,3747.9,0.1336]
[1753556061854,0.9239,3748.1,3747.8,1e-08]
[1753556062147,1.26869,3748.0,3747.8,1e-08]
[1753556062331,0.9239,3748.0,3747.8,1e-08]
[1753556062531,0.9239,3747.9,3747.8,1e-08]
[1753556064062,1.7051,3747.9,3747.8,1e-08]
[1753556064261,1.8387,3747.9,3747.8,1e-08]
[1753556064463,4.50686083,3747.9,3747.8,1e-08]
[1753556064663,21.97865083,3747.9,3747.8,1e-08]
[1753556067305,25.04765083,3747.9,3747.8,1e-08]
[1753556077420,7.57586083,3747.9,3747.8,1e-08]
[1753556077624,25.04765083,3747.9,3747.8,1e-08]
[1753556078032,28.04765083,3747.9,3747.8,1e-08]
[1753556078903,28.47291399,3747.9,3747.8,1e-08]
[1753556079226,35.65491399,3747.9,3747.8,1e-08]
[1753556079630,24.49802202,3747.8,3747.7,1e-08]
[1753556079843,25.84718518,3747.8,3747.7,1e-08]
[1753556080050,28.36218518,3747.8,3747.7,1e-08]
[1753556080935,11.04007982,3747.8,3747.7,1e-08]
[1753556081144,28.51186982,3747.8,3747.7,1e-08]
[1753556081800,25.99686982,3747.8,3747.7,1e-08]
[1753556082028,28.51086982,3747.8,3747.7,1e-08]
[1753556084621,28.51037935,3747.8,3747.7,1e-08]
[1753556085221,25.99637935,3747.8,3747.7,1e-08]
[1753556085537,28.51037935,3747.8,3747.7,1e-08]
[1753556085740,28.51034426,3747.8,3747.7,1e-08]
[1753556085907,25.94634426,3747.8,3747.7,1e-08]
[1753556086105,28.46034426,3747.8,3747.7,1e-08]
[1753556086645,28.45934426,3747.8,3747.7,1e-08]
[1753556087642,28.45891076,3747.8,3747.7,1e-08]
[1753556090943,25.49853716,3747.4,3747.3,1e-08]
[1753556091175,25.49853716,3747.4,3747.0,1e-08]
[1753556091176,4.00923048,3747.1,3747.0,1e-08]
[1753556091356,31.39813974,3747.1,3747.0,1e-08]
[1753556091557,32.48773669,3747.1,3747.0,1e-08]
[1753556091731,32.33823974,3747.1,3747.0,1e-08]
[1753556093454,32.48768622,3747.1,3747.0,1e-08]
[1753556093655,21.47541912,3746.4,3746.2,0.001]
[1753556093875,31.23078143,3746.4,3746.2,0.001]
[1753556094201,31.67448143,3746.4,3746.2,0.001]
[1753556094509,30.80626628,3746.4,3746.2,0.001]
[1753556094815,31.23069225,3746.4,3746.3,1e-08]
[1753556095008,32.30179795,3746.4,3746.3,1e-08]
[1753556096673,30.93727198,3746.4,3746.3,1e-08]
[1753556097053,31.36156796,3746.4,3746.3,1e-08]
[1753556098350,31.36156796,3746.4,3746.1,1e-08]
[1753556098351,1.3565,3746.2,3746.1,1e-08]
[1753556098551,24.89604432,3746.2,3746.1,1e-08]
[1753556098875,28.50551594,3746.2,3746.1,1e-08]
[1753556099752,3.21965668,3745.8,3745.7,0.4576]
[1753556100089,23.69151795,3745.7,3745.6,0.001]
[1753556100295,23.82511795,3745.7,3745.6,0.001]
[1753556100471,23.82511795,3745.7,3745.6,0.4586]
[1753556100797,6.35332795,3745.7,3745.6,0.4586]
[1753556100957,23.82511795,3745.7,3745.6,0.4586]
[1753556101288,24.48375557,3745.7,3745.6,0.4586]
[1753556101598,23.82511795,3745.7,3745.6,0.4586]
[1753556103027,23.82511795,3745.7,3745.6,0.001]
[1753556103196,25.57331795,3745.7,3745.6,0.001]
[1753556103601,0.55,3745.5,3745.4,1e-08]
[1753556103798,26.33426051,3745.5,3745.4,1e-08]
[1753556104090,27.27436051,3745.5,3745.4,1e-08]
[1753556104503,27.69828398,3745.5,3745.4,1e-08]
[1753556105066,25.18928398,3745.5,3745.4,1e-08]
[1753556105273,24.24918398,3745.5,3745.4,0.91240001]
[1753556105571,5.56132825,3745.5,3745.4,0.91240001]
[1753556105908,8.86247051,3745.5,3745.4,0.91240001]
[1753556106902,6.35347051,3745.5,3745.4,0.91240001]
[1753556107083,8.86247051,3745.5,3745.4,0.91240001]
[1753556109307,9.52110813,3745.5,3745.4,1e-08]
[1753556109509,8.86247051,3745.5,3745.4,0.45760001]
[1753556109975,26.33426051,3745.5,3745.4,0.45760001]
[1753556110605,26.33426051,3745.5,3745.4,1e-08]
[1753556110807,24.07443932,3745.5,3745.4,1e-08]
[1753556111014,3.60264932,3745.5,3745.4,0.91240001]
[1753556111175,5.86147051,3745.5,3745.4,0.91240001]
[1753556111372,6.35347051,3745.5,3745.4,0.91240001]
[1753556111623,5.86147051,3745.5,3745.4,0.91240001]
[1753556111912,8.86147051,3745.5,3745.4,0.91240001]
[1753556112977,8.86147051,3745.5,3745.4,1e-08]
[1753556113190,8.86147051,3745.5,3745.4,0.48440001]
[1753556119335,26.75856403,3745.5,3745.4,1e-08]
[1753556120022,26.75867329,3745.5,3745.4,1e-08]
[1753556120191,28.40527329,3745.5,3745.4,1e-08]
[1753556120383,28.55317559,3745.5,3745.4,1e-08]
[1753556122021,14.92938559,3745.5,3745.4,1e-08]
[1753556122226,32.22547457,3745.5,3745.4,1e-08]
[1753556122391,32.40162576,3745.5,3745.4,1e-08]
[1753556122790,32.0758499,3745.5,3745.4,1e-08]
[1753556123119,31.82586051,3745.5,3745.4,1e-08]
[1753556123624,32.40199415,3745.5,3745.4,1e-08]
[1753556125298,29.89599415,3745.5,3745.4,0.00100001]
[1753556125532,29.46509415,3745.5,3745.4,0.00100001]
[1753556125828,27.75435699,3745.5,3745.4,0.48540001]
[1753556126028,30.75435699,3745.5,3745.4,0.48540001]
[1753556126332,13.28256699,3745.5,3745.4,0.48540001]
[1753556126518,30.75435699,3745.5,3745.4,0.48540001]
[1753556126936,30.75434915,3745.5,3745.4,0.48540001]
[1753556127244,30.60428306,3745.5,3745.4,0.00100001]
[1753556127431,31.63523965,3745.5,3745.4,0.00100001]
[1753556127638,32.41253965,3745.5,3745.4,0.00100001]
[1753556128158,30.75433965,3745.5,3745.4,0.00100001]
[1753556128339,13.13249306,3745.5,3745.4,0.48540001]
[1753556128548,30.60428306,3745.5,3745.4,0.48540001]
[1753556129433,28.09928306,3745.5,3745.4,0.48540001]
[1753556129663,30.75435003,3745.5,3745.4,0.48540001]
[1753556130548,30.60428306,3745.5,3745.4,0.48540001]
[1753556131861,28.09928306,3745.5,3745.4,0.48540001]
[1753556132038,30.60328306,3745.5,3745.4,0.48540001]
[1753556132724,30.60335611,3745.5,3745.4,0.48540001]
[1753556132925,28.09935611,3745.5,3745.4,0.48540001]
[1753556133127,30.60335611,3745.5,3745.4,0.48540001]
[1753556133321,28.09935611,3745.5,3745.4,0.48540001]
[1753556133526,30.60335611,3745.5,3745.4,0.48540001]
[1753556135762,28.09935611,3745.5,3745.4,0.48540001]
[1753556136073,30.60235611,3745.5,3745.4,0.48540001]
[1753556136569,30.35224708,3745.5,3745.4,0.48540001]
[1753556136970,24.00124708,3745.5,3745.4,0.48540001]
[1753556137266,26.50424708,3745.5,3745.4,0.48540001]
[1753556137567,0.85958657,3745.5,3745.4,0.48540001]
[1753556137771,3.1866,3745.5,3745.4,1.24180001]
[1753556138094,3.1866,3745.5,3745.4,1.68630001]
[1753556138276,0.6836,3745.5,3745.4,1.68630001]
[1753556138434,2.503,3745.5,3745.4,1.85493001]
[1753556138766,0.002,3745.9,3745.8,0.7564]
[1753556138969,2.505,3745.9,3745.8,0.7564]
[1753556139141,2.68103271,3745.9,3745.8,1.6853]
[1753556140355,0.17803271,3745.9,3745.8,1.6853]
[1753556140569,0.002,3745.9,3745.8,4.80382263]
[1753556140880,2.504,3745.9,3745.8,4.80382263]
[1753556141479,2.504,3745.9,3745.8,2.13416595]
[1753556143177,2.504,3745.9,3745.8,1.2408]
[1753556144248,2.504,3745.9,3745.8,1.6849]
[1753556144580,2.504,3745.9,3745.8,1.2408]
[1753556144950,2.504,3745.9,3745.5,0.7795]
[1753556145290,0.1336,3745.8,3745.5,0.7795]
[1753556145609,0.5813,3745.8,3745.6,0.4979]
[1753556145783,0.1336,3745.8,3745.6,0.4979]
[1753556147055,0.1336,3745.8,3745.5,0.7795]
[1753556147383,2.5,3745.7,3745.5,1.2774]
[1753556147585,2.5,3745.7,3745.6,0.4979]
[1753556150988,0.1356,3745.8,3745.6,0.4979]
[1753556151160,2.5,3745.7,3745.5,0.7795]
[1753556151557,2.5,3745.7,3745.5,1.2236]
[1753556151756,2.5,3745.7,3745.6,0.4979]
[1753556161998,2.5,3745.7,3745.5,0.7795]
[1753556162158,2.5,3745.7,3745.5,1.2774]
[1753556164990,2.5,3745.7,3745.5,0.7795]
[1753556165201,0.1356,3745.8,3745.6,0.52459799]
[1753556165512,0.002,3745.8,3745.7,3.46092795]
[1753556165683,0.002,3745.8,3745.7,3.95882795]
[1753556165684,2.498,3745.8,3745.7,3.95882795]
[1753556166011,2.498,3745.8,3745.7,4.40292795]
[1753556168013,2.498,3745.8,3745.7,3.95882795]
[1753556170923,2.498,3745.8,3745.7,1.2891]
[1753556171216,2.498,3745.8,3745.7,3.95882795]
[1753556172993,2.9514,3745.8,3745.4,0.83280001]
[1753556173196,2.498,3745.8,3745.4,0.96640001]
[1753556173391,0.9365,3745.7,3745.4,0.96640001]
[1753556173698,0.4534,3745.6,3745.4,0.96640001]
[1753556174030,0.4534,3745.6,3745.4,1.42720001]
[1753556174616,0.4534,3745.6,3745.4,4.09711537]
[1753556174784,0.4534,3745.6,3745.4,4.09713303]
[1753556174990,0.4831,3745.7,3745.4,4.09713303]
[1753556175299,0.9365,3745.7,3745.4,4.09713303]
[1753556175495,0.4534,3745.7,3745.4,4.09713303]
[1753556176028,0.4534,3745.7,3745.5,0.4608]
[1753556176620,0.9365,3745.7,3745.4,0.96640001]
[1753556176780,0.9365,3745.7,3745.4,1.42720001]
[1753556177181,0.9365,3745.7,3745.4,0.96640001]
[1753556178095,0.9365,3745.6,3745.4,0.13460001]
[1753556178283,0.9365,3745.6,3745.4,0.00100001]
[1753556178491,0.4534,3745.5,3745.4,0.00100001]
[1753556178685,3.73997051,3745.5,3745.4,0.00100001]
[1753556179215,3.25687051,3745.5,3745.4,0.00100001]
[1753556179394,3.73997051,3745.5,3745.4,0.00100001]
[1753556179603,3.5641,3745.5,3745.4,0.00100001]
[1753556181789,0.002,3745.8,3745.5,2.66987051]
[1753556182087,0.002,3745.8,3745.7,2.66972795]
[1753556182291,0.002,3745.8,3745.7,2.80332795]
[1753556182489,0.002,3745.8,3745.7,3.26412795]
[1753556182919,0.002,3745.8,3745.7,3.73032795]
[1753556184626,0.002,3745.8,3745.7,3.26412795]
[1753556184794,0.002,3745.8,3745.7,3.97205913]
[1753556187523,0.002,3745.8,3745.7,3.5379564]
[1753556187690,0.002,3745.8,3745.7,2.83002522]
[1753556188317,0.002,3745.8,3745.7,2.80332795]
[1753556190198,0.002,3745.8,3745.7,3.29082522]
[1753556192331,0.002,3745.8,3745.7,3.26412795]
[1753556194124,0.002,3745.8,3745.7,2.80332795]
[1753556198905,0.002,3745.8,3745.7,3.26412795]
[1753556199940,0.002,3745.8,3745.7,3.29082522]
[1753556205025,0.002,3745.8,3745.7,3.26412795]
[1753556206858,0.002,3745.8,3745.7,2.80332795]
[1753556209559,0.002,3745.8,3745.7,3.27832795]
[1753556220073,0.002,3745.8,3745.7,2.80332795]
[1753556224174,0.438,3745.8,3745.7,2.80332795]
[1753556227183,0.438,3745.8,3745.4,0.00100001]
[1753556227383,0.913,3745.8,3745.6,0.1336]
[1753556227881,0.002,3745.8,3745.6,0.1336]
[1753556228082,0.002,3745.8,3745.7,4.42202522]
[1753556228380,0.002,3745.8,3745.7,3.61842522]
[1753556228586,0.002,3745.8,3745.7,4.42202522]
[1753556228971,0.002,3745.8,3745.7,7.42202522]
[1753556229150,0.002,3745.8,3745.7,7.39532795]
[1753556229349,0.002,3745.8,3745.7,9.03223194]
[1753556230483,0.002,3745.8,3745.7,11.51523194]
[1753556239511,0.002,3745.8,3745.7,11.06823194]
[1753556243521,0.002,3745.8,3745.7,11.54083194]
[1753556245019,0.002,3745.8,3745.7,11.06823194]
[1753556257731,0.002,3745.8,3745.7,10.59323194]
[1753556257937,0.4538,3745.8,3745.7,10.59323194]
[1753556259541,0.4538,3745.8,3745.7,9.78963194]
[1753556259705,0.9091,3745.8,3745.7,9.78963194]
[1753556260139,0.4538,3745.8,3745.7,9.78963194]
[1753556264146,0.002,3745.8,3745.7,9.78963194]
[1753556264948,0.4463,3745.8,3745.7,9.78963194]
[1753556267616,0.002,3745.8,3745.7,5.66972795]
[1753556267954,0.932,3745.8,3745.7,8.14472795]
[1753556268649,0.932,3745.8,3745.7,5.14472795]
[1753556268848,0.932,3745.8,3745.7,2.66972795]
[1753556271021,0.932,3745.8,3745.6,0.1336]
[1753556271355,0.93,3745.7,3745.6,2.80339923]
[1753556272460,0.93,3745.7,3745.6,0.1336]
[1753556273660,0.93,3745.7,3745.6,2.80339923]
[1753556296689,0.932,3745.7,3745.6,2.80339923]
[1753556298387,0.4463,3745.7,3745.6,2.80339923]
[1753556304494,0.002,3745.7,3745.6,2.80339923]
[1753556314199,0.002,3745.7,3745.6,3.25499923]
[1753556326816,0.002,3745.7,3745.6,2.80339923]
[1753556326992,0.002,3745.7,3745.6,0.1336]
[1753556327315,0.4442,3745.7,3745.6,0.1336]
[1753556327688,0.9232,3745.7,3745.4,0.47400001]
[1753556327916,0.9232,3745.7,3745.5,2.80345905]
[1753556328684,0.4442,3745.7,3745.5,2.80345905]
[1753556328889,0.4442,3745.7,3745.5,3.27645905]
[1753556330324,0.4442,3745.7,3745.6,2.66979923]
[1753556331415,0.4442,3745.7,3745.5,3.27644685]
[1753556332325,0.002,3745.7,3745.5,2.80344685]
[1753556332515,0.9212,3745.6,3745.5,2.80344685]
[1753556332915,0.4422,3745.6,3745.5,2.80344685]
[1753556333228,0.7849,3745.5,3745.4,0.00100001]
[1753556333924,1.7061,3745.5,3745.4,0.00100001]
[1753556334303,4.92597051,3745.5,3745.4,0.00100001]
[1753556334697,22.39776051,3745.5,3745.4,0.00100001]
[1753556334927,22.68236813,3745.5,3745.4,0.00100001]
[1753556336831,25.14636813,3745.5,3745.4,0.00100001]
[1753556339033,7.67457813,3745.5,3745.4,0.00100001]
[1753556339338,25.14636813,3745.5,3745.4,0.00100001]
[1753556346519,7.67457813,3745.5,3745.4,0.00100001]
[1753556346714,25.14636813,3745.5,3745.4,0.00100001]
[1753556349627,7.67457813,3745.5,3745.4,0.00100001]
[1753556349935,25.14636813,3745.5,3745.4,0.00100001]
[1753556350619,7.67457813,3745.5,3745.4,0.00100001]
[1753556350824,25.14636813,3745.5,3745.4,0.00100001]
[1753556352560,28.14636813,3745.5,3745.4,0.00100001]
[1753556353056,10.67457813,3745.5,3745.4,0.00100001]
[1753556353256,28.14636813,3745.5,3745.4,0.00100001]
[1753556353761,28.32198059,3745.5,3745.4,0.00100001]
[1753556354137,28.14636813,3745.5,3745.4,0.00100001]
[1753556354337,28.32197261,3745.5,3745.4,0.00100001]
[1753556355158,28.14636813,3745.5,3745.4,0.00100001]
[1753556355364,28.3219742,3745.5,3745.4,0.00100001]
[1753556355963,35.5019742,3745.5,3745.4,1e-08]
[1753556357663,35.50198306,3745.5,3745.4,1e-08]
[1753556361375,35.65383631,3745.5,3745.4,1e-08]
[1753556364437,35.65395641,3745.5,3745.4,1e-08]
[1753556366469,18.18216641,3745.5,3745.4,1e-08]
[1753556366669,35.65395641,3745.5,3745.4,1e-08]
[1753556368053,31.71875641,3745.5,3745.4,1e-08]
[1753556368387,33.24288306,3745.5,3745.4,0.47350001]
[1753556368546,33.79288306,3745.5,3745.4,0.47350001]
[1753556368975,31.33388306,3745.5,3745.4,0.47350001]
[1753556369277,16.32109306,3745.5,3745.4,0.47350001]
[1753556369591,33.79288306,3745.5,3745.4,0.47350001]
[1753556370586,30.49927544,3745.5,3745.4,0.47350001]
[1753556370748,32.95827544,3745.5,3745.4,0.90820001]
[1753556370957,33.50827544,3745.5,3745.4,0.90820001]
[1753556371288,33.50827544,3745.5,3745.4,0.47350001]
[1753556371650,33.50855556,3745.5,3745.4,0.47350001]
[1753556372746,30.87366051,3745.5,3745.4,0.47350001]
[1753556372952,33.33266051,3745.5,3745.4,0.47350001]
[1753556373352,33.50857053,3745.5,3745.4,0.47350001]
[1753556373952,33.50857153,3745.5,3745.4,0.47350001]
[1753556374482,33.50857882,3745.5,3745.4,0.47350001]
[1753556374849,33.50857882,3745.5,3745.4,1e-08]
[1753556375255,33.33266051,3745.5,3745.4,1e-08]
[1753556375455,33.50860018,3745.5,3745.4,1e-08]
[1753556375651,33.65863657,3745.5,3745.4,1e-08]
[1753556375857,34.91153657,3745.5,3745.4,1e-08]
[1753556376060,35.25170018,3745.5,3745.4,1e-08]
[1753556378792,17.77991018,3745.5,3745.4,1e-08]
[1753556378992,35.25170018,3745.5,3745.4,1e-08]
[1753556379159,35.40180775,3745.5,3745.4,1e-08]
[1753556379767,34.76150018,3745.5,3745.4,1e-08]
[1753556380276,34.30470018,3745.5,3745.4,1e-08]
[1753556381789,34.30484099,3745.5,3745.4,1e-08]
[1753556382452,31.84584099,3745.5,3745.4,1e-08]
[1753556382657,34.30284099,3745.5,3745.4,1e-08]
[1753556384194,16.83105099,3745.5,3745.4,1e-08]
[1753556384371,34.30284099,3745.5,3745.4,1e-08]
[1753556384979,31.84584099,3745.5,3745.4,1e-08]
[1753556385177,34.30284099,3745.5,3745.4,1e-08]
[1753556387562,34.30285101,3745.5,3745.4,1e-08]
[1753556388189,34.76775101,3745.5,3745.4,1e-08]
[1753556388360,34.30285101,3745.5,3745.4,1e-08]
[1753556392221,34.76775101,3745.5,3745.4,1e-08]
[1753556393887,35.26585101,3745.5,3745.4,1e-08]
[1753556394273,35.41604215,3745.5,3745.4,1e-08]
[1753556394897,35.26585101,3745.5,3745.4,1e-08]
[1753556395210,35.41605803,3745.5,3745.4,1e-08]
[1753556395800,17.94426803,3745.5,3745.4,1e-08]
[1753556396001,35.41605803,3745.5,3745.4,1e-08]
[1753556398472,35.416122,3745.5,3745.4,1e-08]
[1753556399914,35.41612605,3745.5,3745.4,1e-08]
[1753556400616,17.94433605,3745.5,3745.4,1e-08]
[1753556400820,35.41612605,3745.5,3745.4,1e-08]
[1753556403009,17.94433605,3745.5,3745.4,1e-08]
[1753556403341,35.41612605,3745.5,3745.4,1e-08]
[1753556405901,30.65002605,3745.5,3745.4,1e-08]
[1753556406100,24.8298805,3745.5,3745.4,0.94060001]
[1753556406340,27.2838805,3745.5,3745.4,0.94060001]
[1753556406639,24.8298805,3745.5,3745.4,0.94060001]
[1753556406825,27.8338805,3745.5,3745.4,0.94060001]
[1753556407303,27.2838805,3745.5,3745.4,0.94060001]
[1753556407695,27.8338805,3745.5,3745.4,0.94060001]
[1753556411225,10.3620905,3745.5,3745.4,0.94060001]
[1753556412628,10.186,3745.5,3745.4,0.94060001]
[1753556412927,10.186,3745.5,3745.4,0.48460001]
[1753556415402,10.185,3745.5,3745.4,0.48460001]
[1753556415603,7.182,3745.5,3745.4,3.3230418]
[1753556415803,9.635,3745.5,3745.4,1.85460001]
[1753556416003,9.635,3745.5,3745.4,4.5245418]
[1753556416511,2.455,3745.5,3745.4,4.5245418]
[1753556419334,2.455,3745.5,3745.4,0.76000001]
[1753556419535,2.455,3745.5,3745.4,1.23230001]
[1753556420901,3.9477,3745.5,3745.4,1e-08]
[1753556421125,4.0813,3745.5,3745.4,1e-08]
[1753556421535,6.75117051,3745.5,3745.4,1e-08]
[1753556421842,24.22296051,3745.5,3745.4,1e-08]
[1753556422025,21.55309,3745.5,3745.4,1e-08]
[1753556422219,21.05719,3745.5,3745.4,1e-08]
[1753556422734,3.5854,3745.5,3745.4,1e-08]
[1753556423133,24.22296051,3745.5,3745.4,1e-08]
[1753556423936,21.55309,3745.5,3745.4,1e-08]
[1753556424738,3.5854,3745.5,3745.4,1e-08]
[1753556425541,6.25527051,3745.5,3745.4,1e-08]
[1753556426418,3.5854,3745.5,3745.4,1e-08]
[1753556427440,3.1386,3745.5,3745.4,1e-08]
[1753556427843,5.80847051,3745.5,3745.4,1e-08]
[1753556428921,6.25527051,3745.5,3745.4,1e-08]
[1753556429121,6.75117051,3745.5,3745.4,1e-08]
[1753556429644,3.1386,3745.5,3745.4,1e-08]
[1753556430239,0.1356,3745.5,3745.4,0.81940001]
[1753556430445,2.453,3745.5,3745.4,1.73320001]
[1753556430847,2.453,3745.5,3745.4,2.18687647]
[1753556431844,2.453,3745.5,3745.4,1.74537647]
[1753556432449,0.002,3745.5,3745.4,1.74537647]
[1753556432613,2.453,3745.5,3745.4,1.74537647]
[1753556432938,2.453,3745.5,3745.4,1e-08]
[1753556433139,0.002,3745.5,3745.4,1e-08]
[1753556433347,0.002,3745.5,3745.4,0.47230001]
[1753556433548,2.453,3745.5,3745.4,0.47230001]
[1753556433847,0.002,3745.5,3745.4,0.47230001]
[1753556434139,2.453,3745.5,3745.4,0.47230001]
[1753556435035,2.453,3745.5,3745.4,1e-08]
[1753556435036,20.92159,3745.5,3745.4,1e-08]
[1753556435251,21.55109,3745.5,3745.4,1e-08]
[1753556435862,24.22096051,3745.5,3745.4,1e-08]
[1753556439451,23.72506051,3745.5,3745.4,1e-08]
[1753556439819,23.27826051,3745.5,3745.4,1e-08]
[1753556440016,20.60839,3745.5,3745.4,1e-08]
[1753556441526,20.60839,3745.5,3745.4,0.47230001]
[1753556441733,3.1366,3745.5,3745.4,0.47230001]
[1753556442119,20.60839,3745.5,3745.4,0.47230001]
[1753556442354,3.1366,3745.5,3745.4,1e-08]
[1753556443321,6.74187051,3745.5,3745.4,1e-08]
[1753556444553,4.072,3745.5,3745.4,1e-08]
[1753556445126,3.6045,3745.5,3745.4,1e-08]
[1753556445984,3.1366,3745.5,3745.4,1e-08]
[1753556446130,3.1366,3745.5,3745.4,0.46830001]
[1753556449760,3.1366,3745.5,3745.4,1e-08]
[1753556450768,3.1366,3745.5,3745.4,0.46830001]
[1753556452871,3.1366,3745.5,3745.4,1e-08]
[1753556459850,6.74187051,3745.5,3745.4,1e-08]
[1753556460254,4.072,3745.5,3745.4,1e-08]
[1753556460549,6.74187051,3745.5,3745.4,1e-08]
[1753556460781,4.072,3745.5,3745.4,1e-08]
[1753556462674,6.74187051,3745.5,3745.4,1e-08]
[1753556474214,0.002,3745.5,3745.4,7.62999122]
[1753556474365,0.002,3745.5,3745.4,11.09709122]
[1753556475304,0.002,3745.5,3745.4,7.3995418]
[1753556475601,0.002,3745.5,3745.4,4.3995418]
[1753556476006,0.002,3745.5,3745.4,5.10649887]
[1753556483613,0.002,3745.5,3745.4,4.63939887]
[1753556484180,0.002,3745.5,3745.4,4.77299887]
[1753556484615,0.002,3745.5,3745.4,5.24009887]
[1753556487622,0.002,3745.5,3745.4,4.77299887]
[1753556488120,0.002,3745.5,3745.4,5.02299842]
[1753556489200,0.002,3745.5,3745.4,5.02299324]
[1753556489880,0.002,3745.5,3745.4,5.51679265]
[1753556490085,0.002,3745.5,3745.4,11.65934207]
[1753556490285,0.002,3745.5,3745.4,11.63264266]
[1753556491386,0.002,3745.5,3745.4,14.63264266]
[1753556491387,1e-08,3745.5,3745.4,14.63264266]
[1753556494388,1e-08,3745.7,3745.6,2.66979923]
[1753556494590,1e-08,3745.7,3745.6,11.12401578]
[1753556494786,1e-08,3745.7,3745.6,12.19522214]
[1753556495219,1e-08,3745.7,3745.6,11.94532342]
[1753556495419,1e-08,3745.7,3745.6,12.19521957]
[1753556496323,0.2515,3745.9,3745.8,6.44945668]
[1753556496485,0.2515,3745.9,3745.8,10.35755731]
[1753556496691,0.2515,3745.9,3745.8,11.45555731]
[1753556497488,1e-08,3745.9,3745.8,11.45555731]
[1753556508649,1e-08,3746.3,3746.2,3.49897162]
[1753556508825,1e-08,3746.5,3746.4,3.49882912]
[1753556509030,1e-08,3746.5,3746.4,6.10212141]
[1753556509231,1e-08,3746.5,3746.4,6.52932912]
[1753556515843,1e-08,3747.2,3746.6,0.7881]
[1753556516082,1e-08,3747.2,3747.1,2.66873048]
[1753556516745,0.94390001,3747.2,3747.1,2.66873048]
[1753556518680,1.75160001,3747.2,3747.0,2.66878309]
[1753556518978,0.9439,3747.1,3747.0,2.66878309]
[1753556520369,0.9439,3747.1,3746.9,2.66886969]
[1753556520568,0.9439,3747.0,3746.7,2.66896301]
[1753556520877,0.80770001,3747.2,3746.9,2.66886846]
[1753556521379,0.9439,3747.1,3746.9,2.66886846]
[1753556521678,0.8077,3746.9,3746.8,2.66892162]
[1753556521882,1.7516,3746.9,3746.8,2.66892162]
[1753556524560,1.7516,3746.9,3746.4,2.442]
[1753556524760,0.9439,3746.8,3746.6,2.66908663]
[1753556525079,0.9439,3746.8,3746.2,4.61440512]
[1753556525080,0.9439,3746.8,3746.2,0.9168557]
[1753556525251,0.9439,3746.7,3746.4,2.66917134]
[1753556525452,0.9439,3746.6,3746.4,2.66917134]
[1753556525760,0.8077,3746.4,3746.3,2.6692843]
[1753556525972,0.8077,3746.4,3746.3,2.8028843]
[1753556526172,1.7516,3746.4,3746.3,2.8028843]
[1753556532091,1.7516,3746.4,3746.3,0.1336]
[1753556532291,1.7516,3746.4,3746.3,2.80290037]
[1753556532503,1.7536,3746.4,3746.3,2.80290037]
[1753556532893,0.002,3746.4,3746.3,3.59423418]
[1753556533081,0.002,3746.4,3746.3,4.05303418]
[1753556533772,0.002,3746.4,3746.3,6.49403418]
[1753556539812,0.002,3746.4,3746.3,6.93033418]
[1753556540013,0.002,3746.4,3746.3,6.49403418]
[1753556548314,0.8973,3746.4,3746.3,6.03523418]
[1753556548695,0.4389,3746.4,3746.3,6.03523418]
[1753556549300,0.002,3746.4,3746.3,3.59423418]
[1753556549576,0.002,3746.4,3746.3,6.49303418]
[1753556550723,0.002,3746.4,3746.3,6.03423418]
[1753556551397,0.002,3746.4,3746.3,6.49303418]
[1753556552948,0.002,3746.4,3746.3,3.59423418]
[1753556553244,0.8973,3746.4,3746.3,6.03423418]
[1753556553600,0.8973,3746.4,3746.3,6.03523418]
[1753556553936,0.4389,3746.4,3746.3,6.03523418]
[1753556555009,0.002,3746.4,3746.3,6.03523418]
[1753556555233,0.002,3746.4,3746.3,6.49403418]
[1753556555434,0.002,3746.4,3746.3,6.03523418]
[1753556557017,0.002,3746.4,3746.3,6.49403418]
[1753556557361,0.002,3746.4,3746.3,10.69203418]
[1753556558521,1e-08,3746.4,3746.3,10.69203418]
[1753556567860,1e-08,3746.4,3746.3,10.25573418]
[1753556582747,0.45160001,3746.4,3746.3,6.59523418]
[1753556582946,0.93050001,3746.4,3746.3,9.03323418]
[1753556583967,0.93050001,3746.4,3746.3,3.59523418]
[1753556584265,1.71740001,3746.4,3746.3,5.24190037]
[1753556584470,1.71740001,3746.4,3746.3,5.80390037]
[1753556584643,1.71740001,3746.4,3746.3,8.24190037]
[1753556586584,1.71740001,3746.4,3746.3,5.24190037]
[1753556587246,1.71740001,3746.4,3746.3,2.80390037]
[1753556587470,1.71740001,3746.4,3746.3,5.24190037]
[1753556594401,1.71740001,3746.4,3746.3,8.24190037]
[1753556598306,1.71740001,3746.4,3746.3,5.80390037]
[1753556598466,1.71740001,3746.4,3746.3,8.24090037]
[1753556600102,1.71740001,3746.4,3746.3,5.80390037]
[1753556600269,1.71740001,3746.4,3746.3,8.24090037]
[1753556609720,1.23850001,3746.4,3746.3,8.24090037]
[1753556610123,1.70050001,3746.4,3746.3,8.24090037]